{"text_format":"3","workbook":"xlsx","n_sheets":2,"sheets":["КАК СЕ ИЗПОЛЗВА РАБОТНАТА КНИГА","ДНЕВНИК"],"not_rendered":{"defined_names":5},"read":"whole","date_system":"1900"}

{"sheet":"КАК СЕ ИЗПОЛЗВА РАБОТНАТА КНИГА","index":0,"n_rows":10,"n_cols":2,"rows_kept":10}
[null,"ИНСТРУКЦИИ"]
[null,"Използвайте работния лист ДНЕВНИК за изчисляване на оценките, когато за всяка задача се дава определен брой точки. "]
[null,"Инструкции: Не забравяйте да запишете архивни копия на своите оценки."]
[null,"1. Попълнете името на учебно заведение, информация за предмета, имената на учениците и ИД на учениците (по желание).   "]
[null,"2. Настройте таблицата за оценка и общ успех така, че да съответства на типичната система за оценяване, която използвате."]
[null,"3. Попълнете имената на задачите или тестовете, започвайки от клетка G7, заедно с колко процента се дават за тях (напр. \"Финален/на\" и \"50%\"). "]
[null,"4. Попълнете резултатите за всеки ученик на всяка задача или тест. Колоните \"Резултат\", \"Оценка с буква\" и \"Общ успех\" се изчисляват автоматично, но можете да ги заместите, ако желаете. По начина, по който се изчисляват оценките, средната стойност и крайната оценката са непълни, докато не бъдат вкарани всички резултати."]
[null,"Използвайте командата \"Област за печат\" в менюто \"Оформление на страниците\", ако искате да промените каква част ще се отпечата."]
[null,"\"Резултат\", \"Оценка с буква\" и \"Общ успех\" не са валидни, докато 100% от тестовете и задачите не са завършени. "]
[null,"Въведете всяка задача или тест и процента й/му от общата оценката в клетки от G7 до W8."]

{"sheet":"ДНЕВНИК","index":1,"n_rows":20,"n_cols":23,"rows_kept":20,"merged":[[5,1,5,5],[6,1,6,3],[6,4,6,5],[7,1,8,3],[7,4,7,5],[8,4,8,5],[15,1,15,5],[16,1,16,2],[17,1,17,2],[18,1,18,2],[19,1,19,2]]}
[null,"ИМЕТО НА ВАШЕТО УЧЕБНО ЗАВЕДЕНИЕ"]
[]
[{"$nulls":6},"Резултат",{"v":0,"d":"0%"},{"v":0.6,"d":"60%"},{"v":0.63,"d":"63%"},{"v":0.67,"d":"67%"},{"v":0.7,"d":"70%"},{"v":0.73,"d":"73%"},{"v":0.77,"d":"77%"},{"v":0.8,"d":"80%"},{"v":0.83,"d":"83%"},{"v":0.87,"d":"87%"},{"v":0.9,"d":"90%"},{"v":0.93,"d":"93%"},{"v":0.97,"d":"97%"}]
[{"$nulls":6},"Оценка с буква","F","D-","D","D+","C-","C","C+","B-","B","B+","A-","A","A+"]
[{"$nulls":6},"Общ успех",0,0.67,1,1.33,1.67,2,2.33,2.67,3,3.33,3.67,4,4]
[null,"Име на преподавателя"]
[null,"Предмет/проект",null,null,"Име на задача или тест"]
[null,"Година/семестър/тримесечие",null,null,"Процент (трябва общо да е 100%)"]
[{"$nulls":4},{"$f":"\"Общ процент: \"&SUM(G8:W8)*100&\"%\"","v":"Общ процент: 0%"}]
[null,"Име на учащ","Идентификационен № на ученика","Резултат","Оценка с буква","Общ успех","Колона6","Колона7","Колона8","Колона9","Колона10","Колона11","Колона12","Колона13","Колона14","Колона15","Колона16","Колона17","Колона18","Колона19","Колона20","Колона21","Колона22"]
[{"$nulls":3},{"$f":"(IF(SUM(Оценки[[#This Row],[Колона6]:[Колона22]]),ROUND(SUMPRODUCT($G$8:$W$8,Оценки[[#This Row],[Колона6]:[Колона22]]),2),\"\"))","v":""},{"$f":"IF(Оценки[[#This Row],[Резултат]]<>\"\",HLOOKUP(Оценки[[#This Row],[Резултат]],ТаблицаОценки,2),\"\")","v":""},{"$f":"IF(Оценки[[#This Row],[Резултат]]<>\"\",HLOOKUP(Оценки[[#This Row],[Резултат]],ТаблицаОценки,3),\"\")","v":""}]
[{"$nulls":3},{"$f":"(IF(SUM(Оценки[[#This Row],[Колона6]:[Колона22]]),ROUND(SUMPRODUCT($G$8:$W$8,Оценки[[#This Row],[Колона6]:[Колона22]]),2),\"\"))","v":""},{"$f":"IF(Оценки[[#This Row],[Резултат]]<>\"\",HLOOKUP(Оценки[[#This Row],[Резултат]],ТаблицаОценки,2),\"\")","v":""},{"$f":"IF(Оценки[[#This Row],[Резултат]]<>\"\",HLOOKUP(Оценки[[#This Row],[Резултат]],ТаблицаОценки,3),\"\")","v":""}]
[{"$nulls":3},{"$f":"(IF(SUM(Оценки[[#This Row],[Колона6]:[Колона22]]),ROUND(SUMPRODUCT($G$8:$W$8,Оценки[[#This Row],[Колона6]:[Колона22]]),2),\"\"))","v":""},{"$f":"IF(Оценки[[#This Row],[Резултат]]<>\"\",HLOOKUP(Оценки[[#This Row],[Резултат]],ТаблицаОценки,2),\"\")","v":""},{"$f":"IF(Оценки[[#This Row],[Резултат]]<>\"\",HLOOKUP(Оценки[[#This Row],[Резултат]],ТаблицаОценки,3),\"\")","v":""}]
[{"$nulls":3},{"$f":"(IF(SUM(Оценки[[#This Row],[Колона6]:[Колона22]]),ROUND(SUMPRODUCT($G$8:$W$8,Оценки[[#This Row],[Колона6]:[Колона22]]),2),\"\"))","v":""},{"$f":"IF(Оценки[[#This Row],[Резултат]]<>\"\",HLOOKUP(Оценки[[#This Row],[Резултат]],ТаблицаОценки,2),\"\")","v":""},{"$f":"IF(Оценки[[#This Row],[Резултат]]<>\"\",HLOOKUP(Оценки[[#This Row],[Резултат]],ТаблицаОценки,3),\"\")","v":""}]
[{"$nulls":3},{"$f":"(IF(SUM(Оценки[[#This Row],[Колона6]:[Колона22]]),ROUND(SUMPRODUCT($G$8:$W$8,Оценки[[#This Row],[Колона6]:[Колона22]]),2),\"\"))","v":""},{"$f":"IF(Оценки[[#This Row],[Резултат]]<>\"\",HLOOKUP(Оценки[[#This Row],[Резултат]],ТаблицаОценки,2),\"\")","v":""},{"$f":"IF(Оценки[[#This Row],[Резултат]]<>\"\",HLOOKUP(Оценки[[#This Row],[Резултат]],ТаблицаОценки,3),\"\")","v":""}]
[]
[null,"Резюме на предмета",null,"Резултат","Оценка с буква","Общ успех","","","","","","","","","","",""]
[null," Средно",null,{"$f":"IFERROR(AVERAGE(Оценки[[#All],[Резултат]]),0)","v":{"v":0,"d":"0.0%"}},{"$f":"IFERROR(HLOOKUP(D18,ТаблицаОценки,2),\"\")","v":"F"},{"$f":"IFERROR(AVERAGE(Оценки[[#All],[Общ успех]]),0)","v":0},"","","","","","","","","","","","","","","","",""]
[null," Най-висок резултат",null,{"$f":"IFERROR(MAX(Оценки[[#All],[Резултат]]),0)","v":{"v":0,"d":"0.0%"}},{"$f":"IFERROR(HLOOKUP(D19,ТаблицаОценки,2),\"\")","v":"F"},{"$f":"IFERROR(MAX(Оценки[[#All],[Общ успех]]),0)","v":0},"","","","","","","","","","","","","","","","",""]
[null," Най-нисък резултат",null,{"$f":"IFERROR(MIN(Оценки[[#All],[Резултат]]),0)","v":{"v":0,"d":"0.0%"}},{"$f":"IFERROR(HLOOKUP(D20,ТаблицаОценки,2),\"\")","v":"F"},{"$f":"IFERROR(MIN(Оценки[[#All],[Общ успех]]),0)","v":0},"","","","","","","","","","","","","","","","",""]